bitfinex/quotes_BTCUSD_20240820
["timestamp","ask_amount","ask_price","bid_price","bid_amount"]
[1724113627874,0.1946,60132.0,60115.0,0.17134877]
[1724113628086,0.116441,60116.0,60115.0,0.17134877]
[1724113628286,0.11647,60102.0,60095.0,0.1909]
[1724113628519,0.1932,60112.0,60099.0,0.51404632]
[1724113628729,0.1932,60112.0,60092.0,0.001]
[1724113628730,0.5238,60111.0,60085.0,0.51404632]
[1724113628949,0.5238,60111.0,60091.0,0.001]
[1724113628950,0.1932,60111.0,60091.0,0.001]
[1724113629155,0.116462,60106.0,60092.0,0.33062699]
[1724113629368,0.116466,60104.0,60092.0,0.33062699]
[1724113629585,0.045736,60130.0,60092.0,0.33062699]
[1724113629586,0.232861,60122.0,60103.0,0.17134877]
[1724113629811,0.5238,60129.0,60109.0,0.17134877]
[1724113629812,0.51404632,60125.0,60109.0,0.17134877]
[1724113630022,0.116428,60123.0,60110.0,0.00332627]
[1724113630228,0.116428,60123.0,60103.0,0.001]
[1724113630229,0.23285,60125.0,60111.0,0.17134877]
[1724113630432,0.5238,60129.0,60111.0,0.17134877]
[1724113630433,0.5238,60129.0,60111.0,0.17467507]
[1724113630636,0.5238,60129.0,60111.0,0.17134877]
[1724113630839,0.232837,60128.0,60111.0,0.17134877]
[1724113631040,0.232855,60123.0,60111.0,0.17134877]
[1724113631243,0.116435,60120.0,60115.0,0.000902]
[1724113631455,0.116441,60116.0,60115.0,0.17225077]
[1724113631667,0.5238,60129.0,60115.0,0.17225077]
[1724113631871,0.116434,60120.0,60115.0,0.17225077]
[1724113632076,0.116433,60121.0,60115.0,0.17225077]
[1724113632280,0.116432,60121.0,60115.0,0.17225077]
[1724113632489,0.116422,60126.0,60115.0,0.17225077]
[1724113632699,0.232818,60133.0,60115.0,0.17225077]
[1724113632700,0.5238,60136.0,60116.0,0.17467529]
[1724113632911,0.1932,60146.0,60125.0,0.3273]
[1724113633120,0.3379,60155.0,60125.0,0.3273]
[1724113633121,0.1932,60154.0,60142.0,0.116391]
[1724113633324,1e-08,60143.0,60142.0,0.52052177]
[1724113634438,1e-08,60143.0,60142.0,0.75330377]
[1724113634679,1e-08,60143.0,60142.0,0.28773977]
[1724113634903,1e-08,60143.0,60142.0,0.29106452]
[1724113635122,1e-08,60143.0,60142.0,0.52384652]
[1724113635344,1e-08,60143.0,60142.0,0.29106452]
[1724113635547,1e-08,60143.0,60142.0,0.17134877]
[1724113636586,1e-08,60143.0,60142.0,1.78773977]
[1724113636791,1e-08,60143.0,60142.0,1.67134877]
[1724113637202,1e-08,60143.0,60142.0,1.78773977]
[1724113637408,1e-08,60143.0,60142.0,1.67134877]
[1724113638053,1e-08,60143.0,60125.0,0.35291]
[1724113638256,1e-08,60143.0,60127.0,0.17134877]
[1724113638257,0.3214,60142.0,60127.0,0.17134877]
[1724113638460,0.232787,60141.0,60127.0,0.17134877]
[1724113638657,0.3214,60142.0,60129.0,0.232832]
[1724113638870,0.3214,60142.0,60125.0,0.3195]
[1724113638871,1e-08,60143.0,60130.0,0.17467414]
[1724113639065,0.3214,60149.0,60140.0,0.232787]
[1724113639301,0.3214,60149.0,60125.0,0.3195]
[1724113639302,0.437778,60149.0,60141.0,0.28774177]
[1724113639526,0.3214,60149.0,60142.0,0.232781]
[1724113639714,0.3214,60149.0,60141.0,0.17134877]
[1724113639715,0.3037,60155.0,60143.0,0.17134877]
[1724113639853,0.116375,60150.0,60143.0,0.17134877]
[1724113640075,0.116376,60150.0,60144.0,1.5]
[1724113640274,0.116375,60151.0,60145.0,0.17134877]
[1724113640474,0.116375,60150.0,60145.0,0.17134877]
[1724113640675,0.116375,60151.0,60145.0,0.17134877]
[1724113640917,0.232742,60153.0,60145.0,0.17134877]
[1724113641118,0.232743,60152.0,60145.0,0.17134877]
[1724113641330,0.232743,60152.0,60135.0,0.232806]
[1724113641532,0.232743,60152.0,60136.0,0.17134877]
[1724113641735,0.00332732,60151.0,60123.0,0.03341]
[1724113641956,0.01965273,60150.0,60126.0,0.40751716]
[1724113642157,0.01965273,60150.0,60126.0,0.17134877]
[1724113642158,0.3201,60130.0,60126.0,0.17134877]
[1724113642310,0.1963,60129.0,60126.0,0.17134877]
[1724113642532,0.1963,60129.0,60115.0,0.74783232]
[1724113642533,0.682024,60116.0,60115.0,0.000902]
[1724113642900,0.3327,60128.0,60115.0,0.17225077]
[1724113643104,0.3327,60128.0,60116.0,0.17134877]
[1724113643105,0.232842,60127.0,60116.0,0.17134877]
[1724113643305,0.232849,60125.0,60115.0,0.000902]
[1724113643551,0.00332732,60124.0,60116.0,0.68539509]
[1724113643724,0.00332732,60124.0,60115.0,0.000902]
[1724113643725,0.116397,60139.0,60123.0,0.17134877]
[1724113643921,0.232772,60145.0,60125.0,0.17134877]
[1724113644122,0.524,60146.0,60141.0,0.000902]
[1724113644401,0.524,60146.0,60142.0,0.17134877]
[1724113644608,0.524,60146.0,60145.0,0.116385]
[1724113644808,0.524,60146.0,60142.0,0.17134877]
[1724113644809,0.3327,60154.0,60142.0,0.17134877]
[1724113644950,0.3327,60154.0,60146.0,0.116382]
[1724113645123,0.3327,60154.0,60146.0,0.17134877]
[1724113645325,0.3327,60154.0,60141.0,0.000902]
[1724113645326,0.116385,60146.0,60141.0,0.000902]
[1724113645576,0.232751,60150.0,60142.0,0.17134877]
[1724113645577,0.232759,60148.0,60142.0,0.17134877]
[1724113645777,0.232759,60148.0,60141.0,0.000902]
[1724113645779,0.00332732,60147.0,60141.0,0.000902]
[1724113645990,0.116388,60144.0,60141.0,0.000902]
[1724113646198,0.00332732,60147.0,60141.0,0.000902]
[1724113646199,0.116391,60142.0,60141.0,0.000902]
[1724113646423,0.3338,60142.0,60141.0,0.000902]
[1724113646574,0.232736,60154.0,60141.0,0.000902]
[1724113646575,0.3128,60149.0,60141.0,0.17225077]
[1724113646796,0.3128,60149.0,60144.0,0.116386]
[1724113647010,0.3128,60149.0,60145.0,1.5]
[1724113647650,0.232759,60148.0,60145.0,1.5]
[1724113647849,0.3128,60149.0,60145.0,1.5]
[1724113648270,0.1993,60150.0,60146.0,0.17467382]
[1724113648388,0.570543,60178.0,60145.0,1.5]
[1724113648389,0.1989,60157.0,60145.0,1.5]
[1724113648612,0.116372,60152.0,60145.0,1.5]
[1724113648848,0.1989,60157.0,60145.0,1.5]
[1724113648849,0.11637,60153.0,60145.0,1.5]
[1724113649050,0.232736,60154.0,60145.0,1.5]
[1724113649245,0.116375,60150.0,60145.0,1.5]
[1724113649518,0.116375,60151.0,60145.0,1.5]
[1724113649685,0.11637,60153.0,60145.0,1.67134877]
[1724113649861,0.116373,60152.0,60145.0,1.67134877]
[1724113650065,0.1989,60157.0,60147.0,0.11638]
[1724113650435,0.1989,60157.0,60145.0,1.90411777]
[1724113650436,0.116366,60155.0,60145.0,1.90411777]
[1724113650601,0.1989,60157.0,60145.0,1.90411777]
[1724113650809,0.116366,60155.0,60148.0,0.116378]
[1724113651011,0.116366,60155.0,60145.0,1.90411777]
[1724113651012,0.232728,60156.0,60145.0,1.67134877]
[1724113651175,0.1989,60157.0,60145.0,1.67134877]
[1724113651377,0.314,60154.0,60146.0,0.17134877]
[1724113651627,0.1989,60157.0,60155.0,0.116365]
[1724113651821,0.1989,60157.0,60151.0,0.232746]
[1724113652000,0.1989,60157.0,60151.0,0.17134877]
[1724113652372,0.116364,60156.0,60151.0,0.17134877]
[1724113652679,0.232728,60156.0,60147.0,1.5]
[1724113652855,0.116366,60155.0,60148.0,0.17134877]
[1724113653056,0.1989,60157.0,60148.0,0.17134877]
[1724113653257,0.116369,60154.0,60148.0,0.17134877]
[1724113653557,0.232731,60156.0,60148.0,0.17134877]
[1724113653558,0.116369,60153.0,60148.0,0.17134877]
[1724113653967,0.116368,60154.0,60148.0,0.17134877]
[1724113654201,0.232731,60156.0,60148.0,0.17134877]
[1724113654202,0.116371,60153.0,60148.0,0.17134877]
[1724113654399,0.232731,60156.0,60148.0,0.17134877]
[1724113654400,0.116372,60152.0,60148.0,0.17134877]
[1724113654611,0.1989,60157.0,60148.0,0.17134877]
[1724113654817,0.1989,60157.0,60144.0,0.232771]
[1724113654818,0.00102,60159.0,60158.0,0.11636]
[1724113655027,0.00102,60159.0,60158.0,0.52042877]
[1724113655242,0.00102,60159.0,60158.0,0.75314877]
[1724113655463,0.00102,60159.0,60158.0,0.98586877]
[1724113655667,0.00102,60159.0,60158.0,0.75314877]
[1724113655876,0.00102,60159.0,60158.0,0.52042877]
[1724113656299,0.232652,60176.0,60158.0,0.52042877]
[1724113656300,0.0002,60179.0,60168.0,0.232681]
[1724113656526,0.00304,60200.0,60192.0,0.348883]
[1724113656774,0.00304,60200.0,60192.0,2.25190787]
[1724113656974,0.00304,60200.0,60192.0,1.78764277]
[1724113657182,0.00304,60200.0,60192.0,1.67134877]
[1724113657588,0.00304,60200.0,60192.0,1.5]
[1724113657794,0.116286,60196.0,60192.0,1.5]
[1724113658019,0.00304,60200.0,60192.0,2.20783777]
[1724113658219,0.00304,60200.0,60192.0,2.73193077]
[1724113658429,0.00304,60200.0,60192.0,2.11704877]
[1724113658655,0.00304,60200.0,60193.0,0.17134877]
[1724113658848,0.00304,60200.0,60182.0,0.3274]
[1724113658849,0.116292,60193.0,60182.0,0.3274]
[1724113659063,0.232566,60198.0,60183.0,0.17134877]
[1724113659277,0.116309,60185.0,60175.0,0.3274]
[1724113659488,0.3132,60194.0,60184.0,0.17134877]
[1724113659707,0.3132,60194.0,60179.0,0.232635]
[1724113659708,0.0002,60199.0,60193.0,0.17134877]
[1724113659911,0.0002,60199.0,60198.0,0.116282]
[1724113660135,0.0002,60199.0,60198.0,1.67467052]
[1724113660345,0.0002,60199.0,60198.0,2.02019577]
[1724113660574,0.0002,60199.0,60198.0,1.78763077]
[1724113660780,0.0002,60199.0,60198.0,0.17134877]
[1724113661415,0.0002,60199.0,60191.0,0.116295]
[1724113661622,0.0002,60199.0,60192.0,0.17134877]
[1724113661869,0.0002,60199.0,60198.0,0.348847]
[1724113662069,0.0002,60199.0,60198.0,0.28763077]
[1724113662270,0.0002,60199.0,60176.0,0.001]
[1724113662478,0.192,60198.0,60192.0,0.116294]
[1724113662699,0.192,60198.0,60187.0,0.40727712]
[1724113662922,0.192,60198.0,60187.0,0.17467112]
[1724113663145,0.424568,60198.0,60187.0,0.17134877]
[1724113663357,0.30852732,60197.0,60175.0,0.116326]
[1724113663563,0.30852732,60197.0,60182.0,0.116312]
[1724113663564,0.232592,60192.0,60182.0,0.116312]
[1724113663761,0.3052,60197.0,60183.0,0.17134877]
[1724113664003,0.192,60198.0,60192.0,0.116293]
[1724113664208,0.192,60198.0,60193.0,0.116292]
[1724113664418,0.0002,60199.0,60198.0,0.116282]
[1724113664627,0.0002,60199.0,60168.0,0.34111]
[1724113664628,0.116318,60180.0,60168.0,0.34111]
[1724113664825,0.5339,60199.0,60175.0,0.51404632]
[1724113664826,0.5337,60190.0,60175.0,0.51404632]
[1724113665018,0.00332732,60189.0,60169.0,0.17134877]
[1724113665226,0.00332732,60189.0,60172.0,0.51404632]
[1724113665440,0.5337,60190.0,60173.0,0.17467159]
[1724113665641,0.3349,60177.0,60163.0,0.00332396]
[1724113665881,0.3349,60177.0,60157.0,0.51404632]
[1724113665882,0.3349,60177.0,60164.0,0.17134877]
[1724113666086,0.1,60189.0,60164.0,0.17121081]
[1724113666304,0.1,60189.0,60135.0,0.51404632]
[1724113666305,0.4989,60165.0,60138.0,0.001]
[1724113666491,0.4989,60165.0,60136.0,0.51404632]
[1724113666492,0.4989,60165.0,60154.0,0.51404632]
[1724113666645,0.4989,60165.0,60155.0,0.17134877]
[1724113667268,0.4989,60165.0,60150.0,0.3214]
[1724113667269,0.4989,60165.0,60156.0,0.17134877]
[1724113667422,0.1855,60165.0,60156.0,0.17134877]
[1724113667625,0.1855,60165.0,60156.0,0.17118654]
[1724113667841,0.116356,60161.0,60156.0,0.17118654]
[1724113668011,0.1855,60165.0,60156.0,0.17118654]
[1724113668012,0.232701,60163.0,60156.0,0.17118654]
[1724113668228,0.232706,60162.0,60150.0,0.3214]
[1724113668437,0.1855,60165.0,60151.0,0.17134877]
[1724113668639,0.1855,60165.0,60157.0,0.116361]
[1724113668850,0.1855,60165.0,60157.0,0.17118741]
[1724113669055,0.1855,60165.0,60157.0,0.28754941]
[1724113669267,0.1855,60165.0,60157.0,0.17118741]
[1724113669642,0.1949,60174.0,60157.0,0.17118741]
[1724113670097,0.3304,60179.0,60150.0,0.4632]
[1724113670098,0.3304,60179.0,60160.0,0.17134877]
[1724113670322,0.116322,60178.0,60169.0,0.116338]
[1724113670530,0.116322,60178.0,60155.0,0.001]
[1724113670531,0.06993832,60181.0,60159.0,0.232713]
[1724113670765,0.11633,60174.0,60169.0,0.17134877]
[1724113670987,0.1949,60182.0,60169.0,0.17134877]
[1724113671627,0.1949,60182.0,60156.0,1.5]
[1724113671628,0.1949,60182.0,60170.0,0.17134877]
[1724113672252,0.1949,60182.0,60171.0,0.00332325]
[1724113672455,0.1949,60182.0,60172.0,0.17134877]
[1724113672660,0.1949,60182.0,60173.0,0.00332321]
[1724113672875,0.1899,60191.0,60174.0,0.17134877]
[1724113673079,0.1899,60191.0,60175.0,0.00332284]
[1724113673306,0.1899,60191.0,60175.0,0.17467161]
[1724113673508,0.1899,60191.0,60175.0,0.17134877]
[1724113673707,0.1899,60191.0,60175.0,0.1712088]
[1724113673910,0.19337399,60191.0,60175.0,0.1712088]
[1724113674735,0.1899,60191.0,60175.0,0.1712088]
[1724113674946,0.00347399,60190.0,60175.0,0.1712088]
[1724113675151,0.00347399,60190.0,60175.0,0.17104713]
[1724113675775,0.3405,60178.0,60158.0,0.3187]
[1724113676018,0.3405,60178.0,60159.0,0.17134877]
[1724113676233,0.3405,60178.0,60160.0,0.00332357]
[1724113676426,0.3405,60178.0,60161.0,0.17134877]
[1724113676828,0.3405,60178.0,60161.0,0.17119743]
[1724113679621,0.1802,60175.0,60161.0,0.17119743]
[1724113680045,0.18367399,60175.0,60161.0,0.17119743]
[1724113680458,0.18367399,60175.0,60152.0,0.51404632]
[1724113680654,0.18367399,60175.0,60153.0,0.17134877]
[1724113680860,0.3106,60173.0,60153.0,0.17134877]
[1724113681105,0.10347399,60172.0,60153.0,0.17134877]
[1724113681308,0.10347399,60172.0,60156.0,0.0009064]
[1724113681513,0.3106,60173.0,60157.0,0.17467286]
[1724113681718,0.3106,60173.0,60157.0,0.17134877]
[1724113681930,0.3106,60173.0,60158.0,0.00332409]
[1724113682160,0.3106,60173.0,60159.0,0.17134877]
[1724113682368,0.1802,60175.0,60166.0,0.00040015]
[1724113682573,0.3158,60183.0,60167.0,0.17134877]
[1724113684028,0.31927399,60183.0,60167.0,0.17134877]
[1724113685310,0.3158,60183.0,60168.0,0.00317488]
[1724113685521,0.00304,60200.0,60175.0,0.17134877]
[1724113685522,1e-08,60176.0,60175.0,0.17134877]
[1724113686163,0.00304,60200.0,60175.0,0.17134877]
[1724113686164,0.1878,60198.0,60176.0,0.001]
[1724113686364,0.1878,60198.0,60180.0,0.17134877]
[1724113686568,0.1878,60198.0,60177.0,0.00332234]
[1724113686569,0.1878,60198.0,60183.0,0.17134877]
[1724113686782,0.1878,60198.0,60184.0,0.00332229]
[1724113686999,0.1878,60198.0,60185.0,0.17134877]
[1724113687201,0.1878,60198.0,60186.0,1.50332229]
[1724113687412,0.1878,60198.0,60187.0,0.17134877]
[1724113687624,0.1878,60198.0,60188.0,0.00332226]
[1724113687834,0.31884,60200.0,60189.0,0.17134877]
[1724113687835,0.00304,60200.0,60189.0,0.17134877]
[1724113688034,0.00304,60200.0,60190.0,1.50332201]
[1724113688265,0.00304,60200.0,60191.0,0.17134877]
[1724113688463,0.00304,60200.0,60192.0,0.00332198]
[1724113688665,0.00304,60200.0,60193.0,0.17134877]
[1724113688873,0.00304,60200.0,60194.0,1.50332198]
[1724113689082,0.00304,60200.0,60195.0,0.17134877]
[1724113689292,0.00304,60200.0,60196.0,0.00332191]
[1724113689497,0.00304,60200.0,60198.0,0.17134877]
[1724113689701,0.00304,60200.0,60198.0,0.1746703]
[1724113690725,0.00304,60200.0,60198.0,0.5081703]
[1724113690943,0.00304,60200.0,60198.0,0.5071703]
[1724113692221,0.00304,60200.0,60198.0,0.50284877]
[1724113692421,0.00304,60200.0,60198.0,0.17134877]
[1724113693859,0.001024,60199.0,60198.0,0.17134877]
[1724113694065,0.001024,60199.0,60182.0,0.3107]
[1724113694279,0.001024,60199.0,60191.0,0.17134877]
[1724113694488,0.001024,60199.0,60192.0,0.00332189]
[1724113694668,0.001024,60199.0,60184.0,0.001]
[1724113694669,0.001024,60199.0,60193.0,0.17134877]
[1724113695082,0.001024,60199.0,60174.0,0.001]
[1724113695083,0.190924,60199.0,60183.0,0.00332262]
[1724113695279,0.190924,60199.0,60184.0,0.17134877]
[1724113695484,0.190924,60199.0,60185.0,0.00332255]
[1724113695829,0.190924,60199.0,60175.0,0.03341]
[1724113695830,0.190924,60199.0,60186.0,0.17134877]
[1724113697299,0.19439799,60199.0,60186.0,0.17134877]
[1724113697490,0.00347399,60198.0,60176.0,1.5]
[1724113697628,0.3359,60197.0,60177.0,0.17134877]
[1724113697829,0.00304,60200.0,60199.0,0.001]
[1724113698031,0.00304,60200.0,60199.0,0.00432091]
[1724113698242,0.00304,60200.0,60199.0,1.501]
[1724113698870,0.02300641,60206.0,60200.0,0.03341]
[1724113699165,0.02300641,60206.0,60190.0,0.1]
[1724113699166,0.00822,60216.0,60206.0,0.03341]
[1724113699378,0.00822,60216.0,60201.0,0.00332074]
[1724113699379,0.00822,60216.0,60209.0,0.20475877]
[1724113699601,0.00822,60216.0,60209.0,2.02845877]
[1724113700054,0.00822,60216.0,60209.0,2.16655877]
[1724113701067,0.00822,60216.0,60209.0,2.98038877]
[1724113703511,0.00822,60216.0,60209.0,1.82101977]
[1724113703722,0.00822,60216.0,60209.0,1.78760977]
[1724113704104,0.00822,60216.0,60209.0,2.02013277]
[1724113704317,0.00822,60216.0,60209.0,2.25265577]
[1724113704495,0.00121638,60213.0,60209.0,1.67134877]
[1724113704879,0.01143578,60210.0,60209.0,1.5]
[1724113705080,0.36021378,60210.0,60209.0,1.5]
[1724113705242,0.12769478,60210.0,60209.0,1.5]
[1724113705897,0.01143578,60210.0,60209.0,1.5]
[1724113706054,0.12769478,60210.0,60209.0,1.5]
[1724113706274,0.00822,60210.0,60209.0,1.78760977]
[1724113706504,0.00822,60210.0,60209.0,2.02013277]
[1724113706873,0.00822,60210.0,60209.0,1.67134877]
[1724113707076,0.00943638,60210.0,60209.0,1.67134877]
[1724113707302,0.00822,60210.0,60209.0,1.67134877]
[1724113709132,0.01143578,60210.0,60209.0,1.5]
[1724113709334,0.12769478,60210.0,60209.0,1.5]
[1724113709665,0.1264784,60210.0,60209.0,1.5]
[1724113710011,0.0102194,60210.0,60209.0,1.5]
[1724113710192,0.00822,60210.0,60209.0,1.67134877]
[1724113711230,0.00822,60210.0,60209.0,1.5]
[1724113711713,0.00943638,60210.0,60209.0,1.5]
[1724113712428,0.00822,60210.0,60209.0,1.5]
[1724113713879,0.00943638,60210.0,60209.0,1.5]
[1724113714080,0.01143578,60210.0,60209.0,1.5]
[1724113714283,0.00121638,60201.0,60190.0,0.51404632]
[1724113714489,0.00121638,60201.0,60186.0,0.0009064]
[1724113714490,0.0019994,60198.0,60193.0,0.51404632]
[1724113714700,0.0019994,60198.0,60194.0,0.17134877]
[1724113714936,0.00121638,60196.0,60195.0,1.5]
[1724113715146,0.0019994,60197.0,60195.0,1.5]
[1724113715346,0.00121638,60196.0,60195.0,1.5]
[1724113715559,0.1933,60206.0,60195.0,1.67134877]
[1724113715824,0.1933,60206.0,60195.0,1.5]
[1724113716020,0.1933,60206.0,60196.0,0.17134877]
[1724113716021,0.00321578,60203.0,60196.0,0.17134877]
[1724113716230,0.0019994,60203.0,60196.0,0.17134877]
[1724113716640,0.00321578,60203.0,60196.0,0.17134877]
[1724113716872,0.0019994,60203.0,60196.0,0.17134877]
[1724113717490,0.00321578,60203.0,60196.0,0.17134877]
[1724113717901,0.0019994,60205.0,60196.0,0.17134877]
[1724113718126,0.001,60204.0,60196.0,0.17134877]
[1724113718329,0.0019994,60203.0,60196.0,0.17134877]
[1724113719322,0.0019994,60205.0,60197.0,0.003322]
[1724113719524,0.1952994,60206.0,60198.0,0.17134877]
[1724113719675,0.1933,60206.0,60199.0,0.0033219]
[1724113719879,0.1933,60206.0,60200.0,0.17134877]
[1724113720283,0.1933,60206.0,60201.0,1.50332187]
[1724113720620,0.1933,60206.0,60202.0,0.17134877]
[1724113720945,0.00822,60210.0,60202.0,0.68871689]
[1724113721150,0.00822,60210.0,60208.0,0.17134877]
[1724113721298,0.00822,60210.0,60199.0,0.3391]
[1724113721299,0.00822,60210.0,60209.0,1.67466979]
[1724113721712,0.00822,60210.0,60209.0,1.67134877]
[1724113721945,4.001e-05,60210.0,60209.0,2.04385877]
[1724113722381,0.00822,60216.0,60209.0,2.04385877]
[1724113722609,0.00822,60216.0,60215.0,0.17134877]
[1724113727781,0.00822,60216.0,60215.0,0.51044877]
[1724113728412,0.00822,60216.0,60215.0,0.54385877]
[1724113728639,0.00822,60216.0,60215.0,0.68235877]
[1724113729063,0.00822,60216.0,60215.0,2.18235877]
[1724113729268,0.00817848,60216.0,60215.0,2.18235877]
[1724113729479,0.00817848,60216.0,60215.0,1.70475877]
[1724113729893,0.00817848,60216.0,60215.0,2.01424239]
[1724113730129,0.00817848,60216.0,60215.0,2.01345877]
[1724113731629,0.00817848,60216.0,60215.0,2.15195877]
[1724113731834,0.00817848,60216.0,60215.0,2.22518161]
[1724113732042,0.00817848,60216.0,60215.0,2.59270403]
[1724113732476,0.001,60232.0,60215.0,2.59270403]
[1724113732477,0.001,60232.0,60217.0,0.03441]
[1724113732719,0.001,60232.0,60231.0,0.3087]
[1724113732930,0.001,60232.0,60231.0,0.4833684]
[1724113733136,0.001,60232.0,60231.0,1.9833684]
[1724113733537,0.001,60232.0,60231.0,1.6746684]
[1724113733961,0.001,60232.0,60231.0,1.67134877]
[1724113734361,0.001,60232.0,60231.0,0.17134877]
[1724113737872,0.001,60232.0,60231.0,1.67134877]
[1724113738505,0.00011,60235.0,60231.0,1.67134877]
[1724113738715,0.00011,60235.0,60232.0,0.17466842]
[1724113739102,0.00011,60235.0,60234.0,0.17134877]
[1724113739347,0.00011,60235.0,60234.0,0.31316828]
[1724113740800,0.0117475,60243.0,60234.0,0.31316828]
[1724113741010,0.0117475,60243.0,60238.0,1.21719777]
[1724113741219,0.0117475,60243.0,60238.0,2.71719777]
[1724113741430,0.0117475,60243.0,60238.0,2.78070609]
[1724113741682,0.0117475,60243.0,60242.0,1.045782]
[1724113741874,1.383531,60250.0,60248.0,0.86753]
[1724113742087,1.383531,60250.0,60248.0,1.54923333]
[1724113742295,1.383531,60250.0,60248.0,3.94553592]
[1724113742512,1.383531,60250.0,60248.0,4.04064738]
[1724113742750,1.37343597,60250.0,60249.0,1.04744362]
[1724113742947,0.0002,60259.0,60256.0,0.348513]
[1724113743155,0.0002,60259.0,60256.0,1.27114577]
[1724113743385,0.0110482,60265.0,60264.0,0.116155]
[1724113743577,6.714e-05,60275.0,60266.0,0.348454]
[1724113743784,0.00106654,60275.0,60266.0,0.17134877]
[1724113744031,6.714e-05,60275.0,60266.0,0.29081759]
[1724113744220,6.714e-05,60275.0,60266.0,0.5871322]
[1724113744452,6.714e-05,60275.0,60266.0,0.8194352]
[1724113744649,6.714e-05,60275.0,60266.0,1.17802038]
[1724113745057,6.714e-05,60275.0,60266.0,1.45682038]
[1724113745739,6.714e-05,60275.0,60266.0,2.89280877]
[1724113746166,6.714e-05,60275.0,60266.0,2.53090577]
[1724113746371,6.714e-05,60275.0,60255.0,0.232344]
[1724113746372,0.0020994,60267.0,60252.0,0.2739]
[1724113746599,0.232308,60265.0,60262.0,0.17134877]
[1724113746802,0.0019994,60266.0,60262.0,0.17134877]
[1724113746803,0.0009994,60266.0,60262.0,0.17134877]
[1724113747014,0.0009994,60266.0,60252.0,1.5]
[1724113747015,0.116164,60260.0,60252.0,1.5]
[1724113747214,0.0019994,60261.0,60253.0,0.17134877]
[1724113747344,0.1827,60260.0,60253.0,0.28752477]
[1724113747551,0.2775,60262.0,60224.0,0.232462]
[1724113747552,0.0019994,60236.0,60224.0,0.232462]
[1724113747760,0.1827,60236.0,60235.0,0.63025732]
[1724113747967,0.1827,60236.0,60214.0,0.7]
[1724113747968,0.232451,60228.0,60206.0,0.04893534]
[1724113748185,0.0009994,60224.0,60211.0,0.51404632]
[1724113748373,0.4453,60231.0,60212.0,1.50332075]
[1724113748571,0.4453,60231.0,60227.0,0.17134877]
[1724113748991,0.561521,60231.0,60227.0,0.17134877]
[1724113749320,0.4453,60231.0,60227.0,0.17134877]
[1724113749662,0.4453,60231.0,60206.0,0.0009053]
[1724113749663,0.001,60212.0,60206.0,0.0009053]
[1724113749865,0.1864094,60230.0,60206.0,0.0009053]
[1724113749866,1.34630278,60211.0,60206.0,0.0009053]
[1724113750272,0.59467278,60211.0,60206.0,0.0009053]
[1724113750495,0.4752,60211.0,60210.0,0.28851307]
[1724113750691,0.1973,60211.0,60210.0,0.28851307]
[1724113750900,0.2779,60218.0,60210.0,0.28851307]
[1724113750901,0.2779,60218.0,60210.0,0.17225407]
[1724113751115,0.0019994,60216.0,60211.0,0.17134877]
[1724113751320,0.2779,60218.0,60211.0,0.17134877]
[1724113751525,0.0009994,60217.0,60211.0,0.17134877]
[1724113751701,0.2779,60218.0,60211.0,0.17134877]
[1724113751960,0.0009994,60217.0,60211.0,0.17134877]
[1724113752174,0.0009994,60217.0,60210.0,0.0009053]
[1724113752373,0.0019994,60212.0,60210.0,0.0009053]
[1724113752715,0.116257,60211.0,60210.0,0.0009053]
[1724113752888,0.0019994,60212.0,60210.0,0.0009053]
[1724113752889,0.0009994,60212.0,60210.0,0.0009053]
[1724113753761,0.0009994,60211.0,60210.0,0.0009053]
[1724113754335,0.3497714,60211.0,60210.0,0.0009053]
[1724113754566,0.3507714,60211.0,60210.0,0.0009053]
[1724113754971,1.02950278,60211.0,60210.0,0.0009053]
[1724113755357,0.7957714,60211.0,60210.0,0.0009053]
[1724113755567,0.445,60211.0,60210.0,0.17225407]
[1724113755753,0.3342,60231.0,60210.0,0.17225407]
[1724113755754,0.1878,60230.0,60210.0,0.17225407]
[1724113755972,0.00121638,60241.0,60240.0,0.116201]
[1724113755973,0.00321578,60241.0,60240.0,0.116201]
[1724113756181,0.066542,60245.0,60240.0,0.116201]
[1724113756182,0.066542,60245.0,60240.0,1.5]
[1724113756386,0.00221638,60252.0,60241.0,0.17134877]
[1724113756532,0.2591,60244.0,60225.0,0.03341]
[1724113756744,0.2591,60244.0,60199.0,0.09608183]
[1724113756745,0.0009994,60223.0,60213.0,0.232505]
[1724113756971,0.232444,60230.0,60199.0,0.2707]
[1724113756972,0.4423,60215.0,60207.0,0.232529]
[1724113757182,0.002,60243.0,60196.0,0.22601]
[1724113757183,0.0001,60267.0,60225.0,0.1846713]
[1724113757373,0.0001,60267.0,60266.0,0.580757]
[1724113757628,1.00824,60277.0,60268.0,0.349442]
[1724113757789,1.00824,60277.0,60268.0,0.681737]
[1724113757997,1.00824,60277.0,60268.0,2.60527389]
[1724113758173,1.00824,60277.0,60268.0,1.35297389]
[1724113758572,1.00824,60277.0,60268.0,1.183732]
[1724113758775,1.00824,60277.0,60268.0,1.083732]
[1724113759061,1.00824,60277.0,60268.0,0.98438077]
[1724113759281,1.00824,60277.0,60268.0,0.75208577]
[1724113759487,0.258,60274.0,60268.0,0.51979077]
[1724113759891,0.258,60274.0,60268.0,0.348442]
[1724113760067,0.258,60274.0,60268.0,0.116147]
[1724113760287,0.258,60274.0,60263.0,0.232312]
[1724113760493,1.00824,60277.0,60268.0,0.348442]
[1724113760700,1.00824,60277.0,60268.0,0.98438077]
[1724113762774,0.27764,60292.0,60268.0,0.98438077]
[1724113762775,1.50288617,60343.0,60336.0,0.054]
[1724113762988,1.50288617,60343.0,60270.0,0.3342]
[1724113762989,0.356032,60300.0,60299.0,1.123464]
[1724113763191,2.56083232,60301.0,60300.0,2.746996]
[1724113763422,0.94902964,60301.0,60300.0,4.68326055]
[1724113763618,0.8424033,60301.0,60300.0,7.85628167]
[1724113763824,0.8424033,60301.0,60300.0,9.79946487]
[1724113763825,0.491872,60301.0,60300.0,9.79946487]
[1724113764040,0.68675013,60302.0,60301.0,1.58123615]
[1724113764325,1.1216,60303.0,60302.0,0.75561]
[1724113764326,1.69050449,60303.0,60302.0,0.75561]